bitfinex-derivatives/quotes_SOLF0:USTF0_20250923
["timestamp","ask_amount","ask_price","bid_price","bid_amount"]
[1758662450154,7.17,214.8,214.73,7.21]
[1758662450448,21.02339496,214.8,214.73,7.21]
[1758662450650,7.17,214.8,214.73,7.21]
[1758662451052,7.17,214.8,214.74,7.21]
[1758662452652,356.2677,214.83,214.69,65.1833]
[1758662452653,7.17,214.83,214.76,7.21]
[1758662454452,7.17,214.83,214.76,11.3988]
[1758662454845,7.17,214.83,214.76,7.21]
[1758662455149,0.59476031,214.84,214.78,1.68669088]
[1758662455345,7.66,214.87,214.79,7.12]
[1758662455853,7.66,214.87,214.79,11.3083]
[1758662457258,7.66,214.87,214.79,7.12]
[1758662457756,7.66,214.83,214.74,7.12]
[1758662458058,7.66,214.83,214.76,1.68669088]
[1758662459147,7.66,214.83,214.76,8.80669088]
[1758662459656,11.8478,214.83,214.76,8.80669088]
[1758662462355,11.8478,214.83,214.76,7.12]
[1758662462554,7.66,214.81,214.76,7.12]
[1758662462745,4.188,214.82,214.76,7.12]
[1758662462948,7.66,214.81,214.76,7.12]
[1758662463155,4.188,214.82,214.76,7.12]
[1758662463552,11.848,214.82,214.76,7.12]
[1758662465459,7.66,214.82,214.76,7.12]
[1758662466553,7.66,214.82,214.73,8.80669088]
[1758662467858,11.848,214.82,214.74,4.1892]
[1758662468058,7.66,214.87,214.77,7.12]
[1758662468760,4.1872,214.86,214.78,4.1884]
[1758662468960,7.66,214.85,214.78,4.1884]
[1758662469258,7.66,214.85,214.79,7.12]
[1758662472060,7.66,214.85,214.79,11.3083]
[1758662472858,7.66,214.85,214.79,7.12]
[1758662473958,7.43,214.84,214.73,1.68669088]
[1758662474157,7.43,214.81,214.73,1.68669088]
[1758662475466,7.43,214.77,214.69,4.1903]
[1758662475658,65.1457,214.82,214.68,7.55]
[1758662475659,7.43,214.75,214.68,7.55]
[1758662476466,1.68669088,214.76,214.68,7.55]
[1758662477162,1.68669088,214.76,214.7,4.19]
[1758662477368,7.43,214.77,214.7,4.19]
[1758662479458,7.43,214.77,214.68,7.55]
[1758662479667,7.43,214.75,214.68,7.55]
[1758662480865,11.6193,214.75,214.68,7.55]
[1758662481969,4.1896,214.74,214.68,7.55]
[1758662482265,7.43,214.73,214.65,15.58891698]
[1758662483669,7.43,214.73,214.66,4.1908]
[1758662484469,7.43,214.73,214.65,7.55]
[1758662484470,7.8,214.72,214.65,7.55]
[1758662484672,7.8,214.72,214.64,352.16]
[1758662484863,7.8,214.67,214.63,114.8]
[1758662485069,7.8,214.69,214.6,3.84781698]
[1758662485267,7.8,214.69,214.59,3.84781698]
[1758662485468,7.8,214.66,214.59,3.84781698]
[1758662486064,7.8,214.66,214.58,3.84781698]
[1758662486271,4.1913,214.65,214.57,125.79781698]
[1758662487271,4.1913,214.65,214.57,129.99051698]
[1758662487465,7.8,214.66,214.57,129.99051698]
[1758662488065,7.8,214.66,214.59,7.13]
[1758662488264,7.8,214.66,214.59,10.97781698]
[1758662488472,1.68669088,214.67,214.59,10.97781698]
[1758662489069,7.8,214.69,214.59,10.97781698]
[1758662489768,4.1906,214.68,214.6,4.1921]
[1758662491073,4.1909,214.67,214.59,7.13]
[1758662491274,7.8,214.65,214.59,7.13]
[1758662491575,9.48669088,214.65,214.59,7.13]
[1758662492774,4.1916,214.63,214.59,7.13]
[1758662493674,4.1916,214.63,214.56,15.17071698]
[1758662494162,4.1916,214.63,214.56,7.13]
[1758662495277,7.8,214.64,214.56,7.13]
[1758662495862,11.9915,214.64,214.58,7.13]
[1758662496069,14.28292703,214.66,214.58,7.13]
[1758662496268,9.48669088,214.68,214.58,7.13]
[1758662497475,4.191,214.66,214.58,11.3225]
[1758662497677,9.48669088,214.68,214.58,11.3225]
[1758662498577,7.8,214.68,214.58,11.3225]
[1758662498769,4.1913,214.65,214.58,11.3225]
[1758662500775,11.9907,214.68,214.59,7.13]
[1758662501780,11.9907,214.68,214.6,4.1919]
[1758662501974,11.9907,214.68,214.61,7.13]
[1758662502583,7.8,214.68,214.61,7.13]
[1758662502881,4.1903,214.7,214.63,7.13]
[1758662503077,7.8,214.73,214.63,7.13]
[1758662503379,7.8,214.67,214.63,7.13]
[1758662503773,7.8,214.67,214.61,4.1918]
[1758662504180,7.8,214.67,214.62,7.13]
[1758662504767,7.8,214.67,214.61,4.1918]
[1758662504977,7.8,214.67,214.62,7.13]
[1758662505173,7.8,214.67,214.61,4.1918]
[1758662505580,7.8,214.67,214.62,7.13]
[1758662505879,17.85450385,214.7,214.61,7.13]
[1758662506175,4.1902,214.7,214.61,7.13]
[1758662506977,4.1902,214.7,214.63,7.13]
[1758662508375,7.8,214.71,214.63,7.13]
[1758662508681,7.8,214.75,214.64,7.13]
[1758662509581,7.8,214.75,214.69,7.13]
[1758662510982,11.9893,214.75,214.69,7.13]
[1758662513081,7.8,214.73,214.69,7.13]
[1758662513981,4.1895,214.74,214.69,7.13]
[1758662514285,7.8,214.73,214.69,7.13]
[1758662514988,18.1776252,214.76,214.69,7.06]
[1758662515290,4.189,214.76,214.69,7.06]
[1758662515685,7.8,214.78,214.68,3.84781698]
[1758662515885,7.8,214.78,214.69,7.06]
[1758662516890,7.8,214.78,214.71,4.1898]
[1758662520990,7.8,214.78,214.72,4.1896]
[1758662521489,7.8,214.78,214.72,11.2496]
[1758662521682,11.9881,214.81,214.71,7.06]
[1758662521888,26.18424775,214.81,214.71,10.93790617]
[1758662522089,11.9881,214.81,214.72,3.87790617]
[1758662522388,11.9881,214.81,214.73,7.06]
[1758662522794,11.9881,214.81,214.74,4.1893]
[1758662523804,7.8,214.81,214.75,11.2491]
[1758662527595,11.9881,214.81,214.75,7.06]
[1758662528697,72.9492,214.81,214.71,3.87790617]
[1758662528900,2.63470987,214.78,214.67,10.93790617]
[1758662529093,7.8,214.77,214.67,10.93790617]
[1758662529294,7.8,214.73,214.67,7.06]
[1758662529493,7.8,214.73,214.65,30.15790617]
[1758662529805,4.1901,214.71,214.65,26.28]
[1758662531601,11.9901,214.71,214.65,26.28]
[1758662535303,7.8,214.71,214.65,26.28]
[1758662535494,7.61,214.76,214.67,3.87790617]
[1758662535699,7.61,214.76,214.68,7.49]
[1758662535997,7.61,214.76,214.69,3.87790617]
[1758662536205,7.61,214.81,214.7,7.49]
[1758662536703,4.1887,214.78,214.72,4.1898]
[1758662537293,4.1887,214.78,214.72,11.6798]
[1758662539601,11.7982,214.8,214.72,11.6798]
[1758662539902,7.61,214.8,214.72,11.6798]
[1758662541007,4.1885,214.79,214.72,11.6798]
[1758662541504,13.73560117,214.83,214.69,3.87790617]
[1758662541505,7.61,214.76,214.69,3.87790617]
[1758662542095,4.1887,214.78,214.72,4.1897]
[1758662542300,7.61,214.8,214.74,7.49]
[1758662543097,7.61,214.78,214.74,7.49]
[1758662545302,7.39,214.77,214.7,11.41790617]
[1758662546104,7.39,214.77,214.7,15.60790617]
[1758662546310,0.53271357,214.82,214.71,7.54]
[1758662546507,0.53271357,214.82,214.73,7.54]
[1758662547809,4.1882,214.81,214.75,4.1891]
[1758662550805,4.1882,214.81,214.75,11.7291]
[1758662554408,7.39,214.83,214.75,3.87790617]
[1758662554605,7.39,214.89,214.77,3.87790617]
[1758662554810,21.2794639,214.89,214.78,7.54]
[1758662555016,7.39,214.89,214.78,7.54]
[1758662555216,72.5144,214.89,214.78,7.54]
[1758662555710,4.1877,214.83,214.78,7.54]
[1758662555912,4.1877,214.83,214.76,3.87790617]
[1758662556112,7.39,214.84,214.77,7.54]
[1758662556310,7.39,214.82,214.73,11.41790617]
[1758662556709,11.5788,214.77,214.72,3.87790617]
[1758662556919,11.5788,214.77,214.73,7.54]
[1758662558019,11.5788,214.77,214.72,3.87790617]
[1758662558508,11.5788,214.77,214.73,7.54]
[1758662558712,11.5788,214.77,214.72,3.87790617]
[1758662558910,11.5788,214.77,214.73,7.54]
[1758662559518,7.39,214.76,214.73,7.54]
[1758662561419,7.39,214.76,214.72,3.87790617]
[1758662561808,7.39,214.76,214.73,7.54]
[1758662565220,11.5791,214.76,214.73,7.54]
[1758662565412,7.39,214.78,214.7,7.54]
[1758662565723,7.39,214.78,214.7,11.41790617]
[1758662566722,4.1891,214.76,214.7,11.41790617]
[1758662568221,4.1887,214.78,214.71,7.54]
[1758662568420,4.1887,214.78,214.72,7.54]
[1758662568932,4.1887,214.78,214.72,11.41790617]
[1758662569637,9.07432316,214.84,214.74,7.54]
[1758662570329,9.07432316,214.84,214.74,3.87790617]
[1758662570531,9.07432316,214.84,214.75,7.54]
[1758662571033,4.1879,214.82,214.75,7.54]
[1758662571831,4.1881,214.81,214.75,7.54]
[1758662572031,9.07432316,214.84,214.75,7.54]
[1758662572736,4.1879,214.82,214.75,7.54]
[1758662574130,4.1879,214.82,214.75,7.54]
[1758662574940,4.1879,214.82,214.76,1.68432316]
[1758662575127,4.1879,214.82,214.77,7.25]
[1758662575436,4.1879,214.82,214.76,12.81222933]
[1758662576745,4.1879,214.82,214.78,3.87790617]
[1758662576935,11.4679,214.82,214.79,7.25]
[1758662577637,7.28,214.83,214.77,3.87790617]
[1758662578836,4.1883,214.8,214.77,3.87790617]
[1758662579142,7.28,214.83,214.76,3.87790617]
[1758662580538,1.68432316,214.81,214.76,3.87790617]
[1758662580951,7.28,214.78,214.76,3.87790617]
[1758662581243,7.28,214.8,214.76,3.87790617]
[1758662581444,1.68432316,214.81,214.75,3.87790617]
[1758662581638,7.28,214.8,214.75,3.87790617]
[1758662581839,1.68432316,214.81,214.75,3.87790617]
[1758662582542,4.1889,214.77,214.75,3.87790617]
[1758662582747,7.28,214.76,214.73,3.87790617]
[1758662582949,7.28,214.76,214.73,11.12790617]
[1758662583845,11.4691,214.76,214.73,11.12790617]
[1758662584747,11.4691,214.76,214.73,3.87790617]
[1758662585048,4.1891,214.76,214.74,7.25]
[1758662585845,11.4687,214.78,214.73,3.87790617]
[1758662586147,11.4687,214.78,214.74,7.25]
[1758662586445,11.4687,214.78,214.74,11.12790617]
[1758662587743,11.4687,214.78,214.75,3.87790617]
[1758662588146,11.4687,214.78,214.75,11.12790617]
[1758662589050,11.4687,214.78,214.75,7.25]
[1758662590246,11.4687,214.78,214.75,11.12790617]
[1758662590442,11.4683,214.8,214.75,3.87790617]
[1758662590644,7.28,214.79,214.76,7.25]
[1758662591140,11.4685,214.79,214.76,7.25]
[1758662594052,8.74432316,214.83,214.76,11.04790617]
[1758662594253,7.06,214.82,214.76,3.87790617]
[1758662594445,1.68432316,214.8,214.76,3.87790617]
[1758662594647,4.189,214.77,214.75,3.87790617]
[1758662594948,11.249,214.77,214.75,3.87790617]
[1758662595952,11.249,214.77,214.75,11.04790617]
[1758662598248,4.189,214.77,214.75,11.04790617]
[1758662598555,4.189,214.77,214.75,3.87790617]
[1758662598756,4.189,214.77,214.76,7.17]
[1758662601152,4.189,214.77,214.76,3.87790617]
[1758662601356,11.249,214.77,214.76,3.87790617]
[1758662603464,11.7685,214.79,214.76,7.25]
[1758662603658,11.7685,214.79,214.77,3.90262072]
[1758662606263,7.58,214.78,214.77,3.90262072]
[1758662607863,11.7685,214.79,214.77,3.90262072]
[1758662608963,4.1878,214.83,214.77,6.8147458]
[1758662609155,7.58,214.85,214.81,7.25]
[1758662609355,7.58,214.85,214.8,5.58553772]
[1758662609554,0.48083624,214.86,214.81,7.25]
[1758662609858,21.77129945,214.89,214.83,8.93432316]
[1758662610059,7.58,214.89,214.83,8.93432316]
[1758662610656,7.58,214.9,214.83,1.68432316]
[1758662611657,74.39132316,214.88,214.81,3.90121456]
[1758662612364,4.1878,214.83,214.81,3.90121456]
[1758662612563,7.58,214.82,214.81,3.90121456]
[1758662612765,7.58,214.82,214.8,3.90121456]
[1758662613061,11.7681,214.81,214.79,3.90121456]
[1758662615065,7.58,214.8,214.79,3.90121456]
[1758662615763,4.1877,214.83,214.8,7.25]
[1758662615964,4.1877,214.83,214.81,7.25]
[1758662616771,11.7677,214.83,214.81,7.25]
[1758662619271,7.58,214.82,214.8,3.89815624]
[1758662619471,7.58,214.82,214.76,3.89815624]
[1758662619669,7.58,214.82,214.75,3.89815624]
[1758662620173,11.7692,214.77,214.75,3.89815624]
[1758662620873,11.7695,214.75,214.74,3.89815624]
[1758662621375,11.7695,214.75,214.73,3.89815624]
[1758662622474,11.7695,214.75,214.74,3.89815624]
[1758662622871,11.7695,214.75,214.73,3.89815624]
[1758662631483,7.58,214.75,214.73,3.89815624]
[1758662633086,7.58,214.75,214.73,11.14815624]
[1758662634389,7.58,214.75,214.73,3.89815624]
[1758662634586,65.1541,214.81,214.72,3.89815624]
[1758662634587,7.49,214.78,214.72,3.89815624]
[1758662634791,7.49,214.78,214.71,3.89815624]
[1758662635386,4.1899,214.73,214.71,3.89815624]
[1758662635592,11.6799,214.73,214.71,3.89815624]
[1758662635786,7.49,214.78,214.72,7.79]
[1758662635994,7.49,214.82,214.73,3.89815624]
[1758662636192,7.49,214.82,214.74,3.89815624]
[1758662636592,7.49,214.76,214.74,3.89815624]
[1758662636792,11.6792,214.77,214.74,11.68815624]
[1758662637095,7.49,214.76,214.74,11.68815624]
[1758662638896,7.49,214.76,214.74,7.79]
[1758662639196,7.49,214.76,214.73,3.89815624]
[1758662639393,7.49,214.76,214.73,11.68815624]
[1758662640590,7.49,214.87,214.76,7.79]
[1758662640796,7.49,214.87,214.77,3.90806368]
[1758662641899,11.6784,214.81,214.77,11.69806368]
[1758662642094,65.1479,214.83,214.76,3.90806368]
[1758662642300,4.1894,214.76,214.74,3.90806368]
[1758662642497,4.1894,214.76,214.71,12.92042264]
[1758662642498,7.49,214.75,214.72,3.90806368]
[1758662642797,7.49,214.75,214.72,11.69806368]
[1758662642997,65.1532,214.81,214.72,3.90806368]
[1758662643201,7.49,214.8,214.72,3.90806368]
[1758662644403,7.49,214.8,214.73,11.69806368]
[1758662644603,7.49,214.8,214.75,7.79]
[1758662644805,7.49,214.8,214.74,3.90806368]
[1758662645100,7.49,214.8,214.76,7.79]
[1758662645900,4.1888,214.79,214.75,3.90806368]
[1758662646704,4.1888,214.79,214.76,7.79]
[1758662646901,4.1888,214.79,214.75,3.90806368]
[1758662647102,4.1888,214.79,214.76,7.79]
[1758662651904,4.1884,214.81,214.76,7.78]
[1758662652112,7.18,214.84,214.76,7.78]
[1758662652303,7.18,214.89,214.78,2.62955327]
[1758662652607,7.18,214.87,214.79,7.78]
[1758662652814,7.18,214.87,214.78,10.72641695]
[1758662652815,7.18,214.87,214.81,3.90806368]
[1758662653614,11.3672,214.87,214.81,3.90806368]
[1758662653912,65.1174,214.93,214.79,4.1886]
[1758662653913,7.18,214.9,214.83,7.78]
[1758662655009,4.1868,214.89,214.83,7.78]
[1758662656813,4.1868,214.89,214.83,3.90806368]
[1758662657010,7.18,214.9,214.84,7.78]
[1758662657416,7.18,214.9,214.84,11.68806368]
[1758662658215,7.18,214.9,214.84,7.78]
[1758662658517,7.18,214.9,214.84,11.68806368]
[1758662658704,4.1865,214.91,214.85,7.78]
[1758662660017,7.18,214.93,214.85,7.78]
[1758662660613,7.18,214.93,214.84,3.90806368]
[1758662660819,7.18,214.93,214.86,7.78]
[1758662661818,7.18,215.02,214.91,2.62955327]
[1758662662018,7.18,215.02,214.93,3.90806368]
[1758662662316,7.18,215.02,214.94,7.78]
[1758662663520,4.1846,215.01,214.94,7.78]
[1758662663812,7.18,215.02,214.94,7.78]
[1758662665616,11.3644,215.02,214.94,7.78]
[1758662676227,4.1846,215.01,214.94,7.78]
[1758662680530,4.1846,215.01,214.94,9.46041331]
[1758662682738,4.1846,215.01,214.94,13.64611331]
[1758662684130,4.1846,215.01,214.94,5.86611331]
[1758662684335,65.0741,215.07,214.91,118.34806368]
[1758662684336,9.45041331,215.09,214.98,7.29]
[1758662685833,9.45041331,215.09,214.98,11.4749]
[1758662685834,4.1837,215.05,214.98,11.4749]
[1758662688726,4.1837,215.05,214.98,4.1849]
[1758662688923,7.77,215.06,214.99,4.1847]
[1758662689122,4.1834,215.07,215.0,8.97041331]
[1758662689527,11.953,215.09,215.02,7.29]
[1758662689726,11.953,215.09,214.99,34.82]
[1758662689727,11.953,215.09,215.03,1.68041331]
[1758662690027,11.953,215.09,215.03,8.97041331]
[1758662695233,4.183,215.09,215.03,8.97041331]
[1758662696336,4.183,215.09,215.07,7.42]
[1758662696837,11.8425,215.11,215.06,1.68041331]
[1758662697040,11.8425,215.11,215.07,7.42]
[1758662697536,11.8425,215.11,215.06,1.68041331]
[1758662697734,11.8425,215.11,215.07,7.42]
[1758662698140,7.66,215.1,215.07,7.42]
[1758662702244,7.66,215.1,215.06,1.68041331]
[1758662702438,7.66,215.11,215.07,7.42]
[1758662702640,360.3006,215.23,215.07,7.42]
[1758662702847,1.68041331,215.2,215.09,1.68041331]
[1758662703040,7.66,215.19,215.1,7.42]
[1758662703343,21.77675449,215.19,215.1,7.42]
[1758662703544,7.66,215.19,215.1,7.42]
[1758662703941,7.66,215.14,215.08,11.28737433]
[1758662704135,1.68041331,215.2,215.09,3.86737433]
[1758662704136,72.7014,215.18,215.09,3.86737433]
[1758662704337,72.7014,215.18,215.09,1.68041331]
[1758662704536,4.1819,215.14,215.09,1.68041331]
[1758662704740,7.66,215.13,215.1,7.42]
[1758662706843,11.8416,215.16,215.1,7.42]
[1758662711750,4.1818,215.15,215.1,7.42]
[1758662711945,4.1818,215.15,215.09,1.68041331]
[1758662712149,11.8418,215.15,215.09,1.68041331]
[1758662713756,11.8418,215.15,215.09,5.86321331]
[1758662715256,11.8418,215.15,215.08,7.42]
[1758662715551,7.1,215.14,215.1,8.84041331]
[1758662716257,7.1,215.14,215.1,1.68041331]
[1758662716458,7.1,215.14,215.1,8.84041331]
[1758662716655,7.1,215.14,215.1,1.68041331]
[1758662716859,7.1,215.14,215.11,7.16]
[1758662718061,101.68989125,215.27,215.11,7.16]
[1758662718062,4.1814,215.17,215.11,7.16]
[1758662718259,11.2814,215.17,215.11,7.16]
[1758662719462,7.1,215.17,215.14,7.16]
[1758662720462,4.181,215.19,215.14,7.16]
[1758662720857,8.78041331,215.2,215.08,7.16]
[1758662721056,8.78041331,215.2,215.09,1.68041331]
[1758662721459,4.1817,215.16,215.09,1.68041331]
[1758662721660,11.2817,215.16,215.09,1.68041331]
[1758662722970,4.1819,215.15,215.09,1.68041331]
[1758662723170,7.1,215.16,215.12,1.68041331]
[1758662723369,7.1,215.16,215.13,7.74]
[1758662724066,7.1,215.16,215.12,1.68041331]
[1758662724268,7.1,215.16,215.13,7.74]
[1758662724566,7.1,215.16,215.12,1.68041331]
[1758662724769,7.37,215.2,215.15,1.68041331]
[1758662724969,7.37,215.2,215.16,7.74]
[1758662725265,4.1805,215.22,215.16,7.74]
[1758662725659,7.37,215.21,215.16,7.74]
[1758662725870,4.1804,215.22,215.16,7.74]
[1758662726167,80.61165489,215.26,215.13,7.74]
[1758662726467,7.37,215.21,215.13,7.74]
[1758662727272,7.37,215.18,215.12,1.68041331]
[1758662728570,7.37,215.18,215.13,7.74]
[1758662728775,7.37,215.18,215.15,9.42041331]
[1758662728975,66.70181331,215.25,215.15,9.42041331]
[1758662729174,7.37,215.24,215.15,9.42041331]
[1758662729371,66.70181331,215.25,215.15,9.42041331]
[1758662729874,7.37,215.2,215.15,9.42041331]
[1758662730176,7.37,215.22,215.15,1.68041331]
[1758662730369,4.1809,215.19,215.15,1.68041331]
[1758662730575,7.37,215.18,215.15,1.68041331]
[1758662732374,4.1809,215.19,215.15,1.68041331]
[1758662732674,7.37,215.18,215.15,1.68041331]
[1758662733181,4.1809,215.19,215.15,1.68041331]
[1758662733772,7.37,215.18,215.15,1.68041331]
[1758662733973,7.37,215.21,215.15,1.68041331]
[1758662735977,11.5507,215.21,215.15,1.68041331]
[1758662736975,1.68041331,215.24,215.13,11.60737433]
[1758662736976,7.37,215.22,215.13,5.54778764]
[1758662737176,7.37,215.22,215.13,1.68041331]
[1758662737773,4.181,215.19,215.13,1.68041331]
[1758662738076,7.37,215.18,215.12,3.86737433]
[1758662738276,7.37,215.18,215.1,3.86737433]
[1758662739771,4.1817,215.15,215.1,3.86737433]
[1758662739972,7.37,215.14,215.11,7.74]
[1758662741373,7.37,215.14,215.11,11.60737433]
[1758662741573,65.056,215.13,215.06,3.86737433]
[1758662741771,7.37,215.12,215.04,3.86737433]
[1758662742469,7.37,215.07,215.04,3.86737433]
[1758662742672,4.1832,215.08,215.04,3.86737433]
[1758662742872,7.37,215.07,215.04,3.86737433]
[1758662743168,4.1832,215.08,215.0,11.9245]
[1758662743169,7.37,215.08,215.0,3.86737433]
[1758662744276,7.37,215.08,214.99,3.86737433]
[1758662744872,11.554,215.04,215.0,7.74]
[1758662745273,11.5529,215.09,215.02,7.74]
[1758662746172,7.37,215.14,215.02,3.86737433]
[1758662746371,7.37,215.14,215.04,7.74]
[1758662746672,7.37,215.14,215.06,7.74]
[1758662747271,7.37,215.14,215.06,11.60737433]
[1758662747878,11.5521,215.14,215.06,11.60737433]
[1758662749778,11.5521,215.14,215.06,7.74]
[1758662751677,11.5521,215.14,215.06,11.60737433]
[1758662752980,11.5523,215.12,215.06,11.60737433]
[1758662753676,7.58,215.11,215.07,7.69]
[1758662754083,7.58,215.11,215.08,7.69]
[1758662754385,7.58,215.13,215.07,3.86737433]
[1758662754583,7.58,215.13,215.05,3.86737433]
[1758662755083,4.1825,215.12,215.05,3.86737433]
[1758662755685,7.58,215.13,215.05,3.86737433]
[1758662756786,4.1823,215.12,215.05,3.86737433]
[1758662757886,4.1823,215.12,215.06,7.69]
[1758662758986,4.1823,215.12,215.06,11.55737433]
[1758662764691,7.58,215.09,215.06,11.55737433]
[1758662764897,7.58,215.09,215.04,11.55737433]
[1758662765101,11.7628,215.1,215.04,11.55737433]
[1758662766096,7.58,215.09,215.05,11.55737433]
[1758662766292,4.1828,215.1,215.05,11.55737433]
[1758662766495,7.58,215.09,215.05,11.55737433]
[1758662766695,4.1828,215.1,215.05,11.55737433]
[1758662766996,7.58,215.09,215.05,11.55737433]
[1758662767993,4.183,215.09,215.05,11.55737433]
[1758662768301,65.0619,215.11,215.02,7.69]
[1758662768495,7.58,215.1,215.02,7.69]
[1758662769799,4.1835,215.06,215.02,7.69]
[1758662770099,7.58,215.06,215.01,3.86737433]
[1758662771101,7.58,215.06,215.02,7.69]
[1758662771801,7.58,215.06,215.01,3.86737433]
[1758662772005,4.1832,215.08,215.02,7.69]
[1758662772196,7.53,215.07,215.02,7.69]
[1758662772392,4.1832,215.08,215.02,3.86737433]
[1758662772704,7.53,215.07,215.03,11.2125475]
[1758662772904,4.1832,215.08,215.04,3.6125475]
[1758662773104,7.53,215.07,215.05,3.6125475]
[1758662773302,7.53,215.07,215.06,3.6125475]
[1758662774900,2.62239097,215.15,215.06,11.2125475]
[1758662774901,7.53,215.1,215.06,11.2125475]
[1758662775205,7.53,215.1,215.07,3.6125475]
[1758662775504,7.53,215.1,215.08,3.6125475]
[1758662775705,7.53,215.1,215.09,3.6125475]
[1758662784019,4.1821,215.13,215.09,3.6125475]
[1758662784319,11.8821,215.13,215.1,10.7525475]
[1758662784516,11.8821,215.13,215.11,3.6125475]
[1758662784717,11.8821,215.13,215.12,3.6125475]
[1758662787421,4.1821,215.13,215.12,3.6125475]
[1758662788017,114.24,215.17,215.12,3.6125475]
[1758662788018,121.94,215.17,215.12,3.6125475]
[1758662788321,121.94,215.17,215.14,7.14]
[1758662788624,7.7,215.17,215.15,3.6125475]
[1758662788820,7.7,215.17,215.16,3.6125475]
[1758662790631,11.881,215.19,215.16,10.7525475]
[1758662790928,7.7,215.19,215.17,3.6125475]
[1758662791123,7.7,215.19,215.18,3.6125475]
[1758662793324,7.7,215.2,215.18,3.6125475]
[1758662793531,7.7,215.2,215.19,3.6125475]
[1758662799328,7.7,215.2,215.16,7.14]
[1758662799528,7.7,215.19,215.17,3.6104905]
[1758662799729,7.7,215.19,215.18,3.6104905]
[1758662802534,7.7,215.17,215.12,3.86737433]
[1758662802840,7.7,215.17,215.13,10.77432168]
[1758662803135,7.7,215.17,215.14,10.77432168]
[1758662803335,7.7,215.17,215.15,3.63432168]
[1758662803636,7.7,215.17,215.16,3.63432168]
[1758662805437,7.7,215.19,215.16,10.77432168]
[1758662805634,4.1808,215.2,215.17,3.63432168]
[1758662805834,4.1808,215.2,215.16,7.14]
[1758662806029,4.1808,215.2,215.17,3.63414087]
[1758662806233,7.7,215.19,215.16,7.14]
[1758662806430,4.1808,215.2,215.17,3.63395565]
[1758662806735,7.7,215.19,215.16,7.14]
[1758662807037,7.7,215.19,215.17,3.63377439]
[1758662807238,7.7,215.19,215.16,7.14]
[1758662807534,4.1808,215.2,215.16,7.14]
[1758662807535,4.1808,215.2,215.17,3.63384382]
[1758662807734,7.7,215.19,215.16,7.14]
[1758662807932,7.7,215.19,215.17,3.63384382]
[1758662808136,7.7,215.19,215.16,7.14]
[1758662808336,7.7,215.19,215.17,3.63384382]
[1758662808536,7.7,215.19,215.16,7.14]
[1758662808737,7.7,215.19,215.17,3.63366939]
[1758662808937,7.7,215.19,215.16,7.14]
[1758662809237,7.7,215.19,215.17,3.63367037]
[1758662809436,7.7,215.19,215.14,7.14]
[1758662809633,4.1808,215.2,215.15,5.31105899]
[1758662809834,11.8808,215.2,215.17,7.14]
[1758662810435,4.1808,215.2,215.17,7.14]
[1758662810639,7.7,215.19,215.17,7.14]
[1758662810841,11.8811,215.19,215.13,7.14]
[1758662811029,11.8811,215.19,215.14,10.77438481]
[1758662811030,4.1811,215.19,215.14,10.77438481]
[1758662811235,7.7,215.18,215.15,10.77438481]